fUSD/lending_fUSD_20260524
["ID","MTS","AMOUNT","RATE_DAILY","PERIOD"]
[422888638,1779576645000,-323.68682015,0.00029949,2]
[422888645,1779576645000,-499.60027154,0.00029964,7]
[422888636,1779576645000,-200.0,0.00029949,2]
[422888641,1779576645000,-177.66375127,0.00029964,7]
[422888635,1779576645000,-1428.38747117,0.00029949,2]
[422888640,1779576645000,-186.38595481,0.00029964,7]
[422888639,1779576645000,-209.40437684,0.00029949,2]
[422888643,1779576645000,-175.55085891,0.00029964,7]
[422888642,1779576645000,-172.73275859,0.00029964,7]
[422888583,1779576645000,-213.38831436,0.000297,2]
[422888647,1779576645000,-335.36357398,0.00029964,2]
[422888646,1779576645000,-343.411332,0.00029964,7]
[422888649,1779576645000,-320.27582964,0.00029964,7]
[422888648,1779576645000,-617.66716138,0.00029964,7]
[422888650,1779576645000,-620.90383672,0.00029964,7]
[422888623,1779576645000,-155.0,0.00029845,30]
[422888627,1779576645000,-200.0,0.00029888,2]
[422888644,1779576645000,-406.43669577,0.00029964,7]
[422888630,1779576645000,-408.61678318,0.00029935,2]
[422888625,1779576645000,-224.57,0.00029865,2]
[422888592,1779576645000,-2000.0,0.00029785,2]
[422888593,1779576645000,-2000.0,0.00029785,2]
[422888588,1779576645000,-2000.0,0.00029785,2]
[422888589,1779576645000,-2000.0,0.00029785,2]
[422888596,1779576645000,-2712.3904472,0.00029829,2]
[422888597,1779576645000,-1636.8665528,0.00029829,2]
[422888599,1779576645000,-1000.0,0.00029829,30]
[422888598,1779576645000,-3363.1334472,0.00029829,2]
[422888601,1779576645000,-585.119069,0.00029837,7]
[422888603,1779576645000,-585.119069,0.00029837,7]
[422888590,1779576645000,-2000.0,0.00029785,2]
[422888608,1779576645000,-447.0,0.00029837,30]
[422888606,1779576645000,-585.119069,0.00029837,7]
[422888621,1779576645000,-352.0,0.00029837,30]
[422888622,1779576645000,-155.0,0.00029837,30]
[422888619,1779576645000,-159.0,0.00029837,30]
[422888620,1779576645000,-344.0,0.00029837,30]
[422888615,1779576645000,-224.0,0.00029837,30]
[422888613,1779576645000,-157.0,0.00029837,30]
[422888618,1779576645000,-152.0,0.00029837,30]
[422888610,1779576645000,-1449.0,0.00029837,30]
[422888617,1779576645000,-397.0,0.00029837,30]
[422888624,1779576645000,-155.0,0.00029845,30]
[422888674,1779576646000,-416.18150161,0.00029983,7]
[422888680,1779576646000,-385.12057641,0.00029983,7]
[422888673,1779576646000,-157.84709258,0.00029983,7]
[422888682,1779576646000,-163.91186119,0.00029983,7]
[422888683,1779576646000,-1368.0852,0.0003,30]
[422888681,1779576646000,-162.60529386,0.00029983,7]
[422888678,1779576646000,-317.78490295,0.00029983,7]
[422888676,1779576646000,-374.47171501,0.00029983,7]
[422888696,1779576646000,-151.0,0.0003003,7]
[422888677,1779576646000,-352.12721123,0.00029983,7]
[422888695,1779576646000,-172.09343008,0.0003003,2]
[422888685,1779576646000,-150.0,0.0003,2]
[422888684,1779576646000,-215.31523495,0.0003,7]
[422888693,1779576646000,-250.0,0.00030027,7]
[422888690,1779576646000,-326.015321,0.00030027,7]
[422888675,1779576646000,-300.8318483,0.00029983,7]
[422888686,1779576646000,-150.0,0.0003,7]
[422888679,1779576646000,-363.42399424,0.00029983,7]
[422888672,1779576646000,-160.78732979,0.00029983,7]
[422888659,1779576646000,-174.72457477,0.00029964,7]
[422888667,1779576646000,-151.0,0.00029964,7]
[422888688,1779576646000,-1013.6097393,0.00030023,7]
[422888657,1779576646000,-150.98275309,0.00029964,7]
[422888658,1779576646000,-151.27726471,0.00029964,2]
[422888654,1779576646000,-152.35650096,0.00029964,7]
[422888651,1779576646000,-465.16598404,0.00029964,7]
[422888652,1779576646000,-313.71263666,0.00029964,7]
[422888656,1779576646000,-317.2643763,0.00029964,7]
[422888653,1779576646000,-320.62945212,0.00029964,7]
[422888671,1779576646000,-160.0,0.00029979,2]
[422888661,1779576646000,-192.632628,0.00029964,7]
[422888660,1779576646000,-192.632628,0.00029964,7]
[422888663,1779576646000,-192.632628,0.00029964,7]
[422888664,1779576646000,-151.0,0.00029964,7]
[422888666,1779576646000,-151.0,0.00029964,7]
[422888665,1779576646000,-151.0,0.00029964,7]
[422888670,1779576646000,-171.54475523,0.00029968,7]
[422888668,1779576646000,-305.07676334,0.00029968,7]
[422888669,1779576646000,-439.0583228,0.00029968,7]
[422888662,1779576646000,-192.632628,0.00029964,7]
[422888691,1779576646000,-326.015321,0.00030027,7]
[422888655,1779576646000,-300.93480374,0.00029964,7]
[422888689,1779576646000,-326.015321,0.00030027,7]
[422888713,1779576646000,-170.41262241,0.0003011,7]
[422888717,1779576646000,-196.94767127,0.00030129,2]
[422888718,1779576646000,-500.0,0.00030129,7]
[422888720,1779576646000,-500.0,0.00030129,7]
[422888724,1779576646000,-595.15803,0.00030129,4]
[422888723,1779576646000,-500.0,0.00030129,2]
[422888726,1779576646000,-1253102.56819337,0.0003013,7]
[422888727,1779576646000,-552.93374765,0.0003013,7]
[422888719,1779576646000,-500.0,0.00030129,7]
[422888728,1779576646000,-979.278584,0.0003013,7]
[422888725,1779576646000,-1000.0,0.00030129,7]
[422888729,1779576646000,-331.21529827,0.0003013,7]
[422888731,1779576646000,-647.0,0.00025082,2]
[422888730,1779576646000,-425.0,0.00023692,7]
[422888732,1779576646000,-9365.42737709,0.0003013,7]
[422888733,1779576646000,-10546.523,0.0003013,7]
[422888736,1779576646000,-18.50562488,0.00023456,2]
[422888694,1779576646000,-472.80166834,0.0003003,2]
[422888735,1779576646000,-583.49437512,0.00022641,2]
[422888721,1779576646000,-500.0,0.00030129,7]
[422888716,1779576646000,-1000.0,0.00030128,2]
[422888714,1779576646000,-222.55260524,0.0003012,2]
[422888687,1779576646000,-1000.0,0.00030023,7]
[422888692,1779576646000,-326.015321,0.00030027,7]
[422888697,1779576646000,-469.59842702,0.0003003,2]
[422888704,1779576646000,-156.07399426,0.00030098,30]
[422888705,1779576646000,-1000.0,0.00030099,10]
[422888722,1779576646000,-563.65970565,0.00030129,7]
[422888706,1779576646000,-1000.0,0.00030099,22]
[422888701,1779576646000,-130500.6386429,0.00030058,2]
[422888699,1779576646000,-457.74333063,0.00030058,2]
[422888698,1779576646000,-3614.99087988,0.0003003,2]
[422888708,1779576646000,-200.0,0.000301,2]
[422888703,1779576646000,-156.07399427,0.00030098,7]
[422888702,1779576646000,-250.0,0.00030082,7]
[422888700,1779576646000,-1998.8787236,0.00030058,2]
[422888709,1779576646000,-152.10400649,0.0003011,7]
[422888712,1779576646000,-231.15600798,0.0003011,7]
[422888710,1779576646000,-225.67224447,0.0003011,7]
[422888711,1779576646000,-153.99235667,0.0003011,7]
[422888715,1779576646000,-151.0,0.00030127,7]
[422888707,1779576646000,-200.0,0.000301,10]
[422888746,1779576647000,-696.55,0.0002755,30]
[422888747,1779576647000,-418.11,0.0002755,30]
[422888744,1779576647000,-647.0,0.00027301,4]
[422888737,1779576647000,-285.33629,0.00023456,2]
[422888741,1779576647000,-647.0,0.00025637,2]
[422888739,1779576647000,-150.0,0.00023456,2]
[422888743,1779576647000,-647.0,0.00026746,3]
[422888742,1779576647000,-647.0,0.00026192,3]
[422888751,1779576647000,-157.25,0.0002784,30]
[422888738,1779576647000,-31.84708512,0.00023456,2]
[422888745,1779576647000,-157.25,0.0002755,2]
[422888740,1779576647000,-150.0,0.00023456,2]
[422888750,1779576647000,-418.11,0.00027711,7]
[422888760,1779576647000,-252.0,0.00029934,10]
[422888758,1779576647000,-647.0,0.0002952,6]
[422888761,1779576647000,-551.72761485,0.00030075,7]
[422888759,1779576647000,-813.0,0.000297,10]
[422888756,1779576647000,-647.0,0.00028411,5]
[422888748,1779576647000,-157.25,0.00027695,7]
[422888755,1779576647000,-157.27,0.0002813,7]
[422888753,1779576647000,-696.55,0.00027872,2]
[422888752,1779576647000,-647.0,0.00027856,4]
[422888749,1779576647000,-696.55,0.00027711,7]
[422888754,1779576647000,-157.25,0.00027985,2]
[422888757,1779576647000,-647.0,0.00028965,6]
[422888765,1779577208000,195.31,0.0002625,120]
[422888777,1779577831000,-1002.9,0.00016438,2]
[422888771,1779577831000,-156.7,0.00012261,2]
[422888780,1779577831000,-2627.3534,0.00017528,2]
[422888782,1779577831000,-350.0,0.00018,2]
[422888773,1779577831000,-250.0,0.00014,2]
[422888775,1779577831000,-300.0,0.00016,2]
[422888778,1779577831000,-167.72,0.00016712,2]
[422888817,1779577832000,-398.50573429,0.00020631,2]
[422888816,1779577832000,-151.0,0.00020631,2]
[422888823,1779577832000,-151.0,0.00020631,2]
[422888826,1779577832000,-151.0,0.00020631,2]
[422888827,1779577832000,-151.0,0.00020631,2]
[422888825,1779577832000,-151.0,0.00020631,2]
[422888819,1779577832000,-151.0,0.00020631,2]
[422888829,1779577832000,-151.0,0.00020631,2]
[422888828,1779577832000,-151.0,0.00020631,2]
[422888830,1779577832000,-151.0,0.00020631,2]
[422888839,1779577832000,-151.0,0.00020631,2]
[422888832,1779577832000,-151.0,0.00020631,2]
[422888834,1779577832000,-151.0,0.00020631,2]
[422888833,1779577832000,-151.0,0.00020631,2]
[422888835,1779577832000,-151.0,0.00020631,2]
[422888836,1779577832000,-151.0,0.00020631,2]
[422888838,1779577832000,-151.0,0.00020631,2]
[422888841,1779577832000,-151.0,0.00020631,2]
[422888821,1779577832000,-151.0,0.00020631,2]
[422888837,1779577832000,-151.0,0.00020631,2]
[422888840,1779577832000,-151.0,0.00020631,2]
[422888844,1779577832000,-151.0,0.00020631,2]
[422888831,1779577832000,-151.0,0.00020631,2]
[422888822,1779577832000,-151.0,0.00020631,2]
[422888807,1779577832000,-1002.9,0.00020381,2]
[422888815,1779577832000,-500.0,0.00020631,2]
[422888843,1779577832000,-151.0,0.00020631,2]
[422888784,1779577832000,-1002.9,0.0001841,2]
[422888787,1779577832000,-155.0,0.0002,2]
[422888785,1779577832000,-215.31523495,0.000191,2]
[422888789,1779577832000,-400.0,0.0002,2]
[422888792,1779577832000,-313.0,0.0002,2]
[422888799,1779577832000,-301.0,0.0002,2]
[422888801,1779577832000,-153.62867103,0.0002,2]
[422888802,1779577832000,-155.00946568,0.0002,20]
[422888803,1779577832000,-268.0,0.0002,2]
[422888797,1779577832000,-157.0,0.0002,2]
[422888795,1779577832000,-1015.0,0.0002,2]
[422888805,1779577832000,-165.96,0.00020038,2]
[422888806,1779577832000,-500.0,0.00020309,2]
[422888804,1779577832000,-282.0,0.0002,2]
[422888809,1779577832000,-151.0,0.00020631,2]
[422888808,1779577832000,-455.43748693,0.00020583,2]
[422888810,1779577832000,-200.0,0.00020631,2]
[422888813,1779577832000,-151.0,0.00020631,2]
[422888812,1779577832000,-151.0,0.00020631,2]
[422888811,1779577832000,-151.0,0.00020631,2]
[422888814,1779577832000,-151.0,0.00020631,2]
[422888818,1779577832000,-1798.80895522,0.00020631,2]
[422888820,1779577832000,-151.0,0.00020631,2]
[422888847,1779577832000,-151.0,0.00020631,2]
[422888824,1779577832000,-151.0,0.00020631,2]
[422888845,1779577832000,-151.0,0.00020631,2]
[422888876,1779577832000,-268.0,0.00022,2]
[422888875,1779577832000,-301.0,0.00022,2]
[422888884,1779577832000,-372.26,0.00022466,2]
[422888885,1779577832000,-500.0,0.00022772,2]
[422888877,1779577832000,-282.0,0.00022,2]
[422888881,1779577832000,-200.0,0.00022275,2]
[422888878,1779577832000,-900.0,0.00022064,2]
[422888883,1779577832000,-1002.9,0.00022353,2]
[422888882,1779577832000,-2005.9555727,0.00022275,2]
[422888879,1779577832000,-500.0,0.00022109,2]
[422888880,1779577832000,-455.43748686,0.0002225,2]
[422888886,1779577832000,-200.0,0.00022823,2]
[422888897,1779577832000,-766.12263861,0.00023356,2]
[422888896,1779577832000,-500.0,0.0002326,2]
[422888888,1779577832000,-1411.0,0.00023,2]
[422888887,1779577832000,-2080.17592889,0.00022823,2]
[422888889,1779577832000,-161.0,0.00023,7]
[422888892,1779577832000,-157.0,0.00023,2]
[422888891,1779577832000,-1015.0,0.00023,2]
[422888890,1779577832000,-313.0,0.00023,2]
[422888893,1779577832000,-301.0,0.00023,2]
[422888894,1779577832000,-268.0,0.00023,2]
[422888842,1779577832000,-151.0,0.00020631,2]
[422888874,1779577832000,-157.0,0.00022,2]
[422888873,1779577832000,-1015.0,0.00022,2]
[422888895,1779577832000,-282.0,0.00023,2]
[422888871,1779577832000,-450.0,0.00022,2]
[422888848,1779577832000,-178.97,0.00020683,2]
[422888850,1779577832000,-155.0,0.00021,2]
[422888859,1779577832000,-200.0,0.00021179,2]
[422888860,1779577832000,-1865.36488656,0.00021179,2]
[422888849,1779577832000,-195.31,0.00021,2]
[422888856,1779577832000,-3556.0,0.00021,2]
[422888851,1779577832000,-313.0,0.00021,2]
[422888854,1779577832000,-301.0,0.00021,2]
[422888846,1779577832000,-151.0,0.00020631,2]
[422888852,1779577832000,-1015.0,0.00021,2]
[422888853,1779577832000,-157.0,0.00021,2]
[422888861,1779577832000,-864.59,0.00021273,2]
[422888858,1779577832000,-1235.0,0.00021167,2]
[422888869,1779577832000,-5000.0,0.00021918,2]
[422888870,1779577832000,-159.0,0.00022,2]
[422888867,1779577832000,-1934.38338736,0.00021727,2]
[422888857,1779577832000,-282.0,0.00021,2]
[422888865,1779577832000,-2887.02,0.00021479,2]
[422888866,1779577832000,-200.0,0.00021727,2]
[422888868,1779577832000,-500.0,0.000219,2]
[422888863,1779577832000,-18041.58683951,0.00021273,2]
[422888862,1779577832000,-16082.69316049,0.00021273,2]
[422888855,1779577832000,-268.0,0.00021,2]
[422888864,1779577832000,-2030.45,0.00021273,2]
[422888872,1779577832000,-313.0,0.00022,2]
[422888917,1779577838000,-1071.0,0.00023356,2]
[422888914,1779577838000,-281.6393173,0.00023356,2]
[422889006,1779577841000,-1808.31121491,0.00023371,2]
[422889005,1779577841000,-381.23804409,0.00023356,2]
[422889047,1779577845000,-900.0,0.00023434,2]
[422889049,1779577845000,-1796.561434,0.00023456,2]
[422889048,1779577845000,-448.42051769,0.00023455,2]
[422889046,1779577845000,-348.83122335,0.00023371,2]
[422889056,1779577862000,415.36473895,0.00025802,120]
[422889057,1779577984000,988.0,0.00028038,120]
[422889065,1779578923000,500.0,0.0002763,120]
[422889066,1779578944000,1000.0,0.00028037,120]
[422889073,1779579031000,-793.61994017,0.00010699,2]
[422889075,1779579031000,-25267.53009913,0.000107,2]
[422889072,1779579031000,-406.38005983,0.00010699,2]
[422889071,1779579031000,-150.729223,0.00010645,2]
[422889076,1779579031000,-49685.61769339,0.000107,2]
[422889074,1779579031000,-150.0,0.00010699,2]
[422889077,1779579031000,-255.0,0.00011737,2]
[422889079,1779579031000,-250.0,0.00014,2]
[422889080,1779579031000,-200.0,0.000148,5]
[422889081,1779579031000,-267.0,0.00014804,2]
[422889082,1779579031000,-400.0,0.000149,5]
[422889078,1779579031000,-725.0,0.00011769,2]
[422889093,1779579032000,-500.0,0.00014999,2]
[422889085,1779579032000,-170.13,0.00014918,2]
[422889084,1779579032000,-291.06795085,0.00014908,2]
[422889083,1779579032000,-5206.40020726,0.000149,2]
[422889087,1779579032000,-454.28852294,0.00014999,2]
[422889090,1779579032000,-500.0,0.00014999,2]
[422889088,1779579032000,-158.88387974,0.00014999,2]
[422889086,1779579032000,-222.55260524,0.0001499,2]
[422889097,1779579032000,-500.0,0.00014999,2]
[422889089,1779579032000,-500.0,0.00014999,2]
[422889095,1779579032000,-500.0,0.00014999,2]
[422889105,1779579032000,-147.76426095,0.00014999,2]
[422889094,1779579032000,-500.0,0.00014999,2]
[422889096,1779579032000,-500.0,0.00014999,2]
[422889098,1779579032000,-500.0,0.00014999,2]
[422889099,1779579032000,-500.0,0.00014999,2]
[422889100,1779579032000,-500.0,0.00014999,2]
[422889101,1779579032000,-31.15779503,0.00014999,2]
[422889092,1779579032000,-500.0,0.00014999,2]
[422889102,1779579032000,-267.00000021,0.00014999,2]
[422889103,1779579032000,-201.84220476,0.00014999,2]
[422889104,1779579032000,-500.0,0.00014999,2]
[422889091,1779579032000,-500.0,0.00014999,2]
[422889158,1779579038000,-403.0,0.000177,5]
[422889161,1779579038000,-1990.4,0.0001772,2]
[422889150,1779579038000,-3393.60103392,0.00017,2]
[422889148,1779579038000,-167.72,0.00016712,2]
[422889145,1779579038000,-3393.60103392,0.000165,2]
[422889144,1779579038000,-1000.0,0.000165,2]
[422889137,1779579038000,-1650.0,0.0001611,15]
[422889146,1779579038000,-621.43653195,0.00016531,2]
[422889149,1779579038000,-3393.60103392,0.000168,2]
[422889147,1779579038000,-3393.60103392,0.000167,2]
[422889160,1779579038000,-150.0,0.0001771,2]
[422889156,1779579038000,-3393.60103392,0.000175,2]
[422889151,1779579038000,-150.0,0.00017025,2]
[422889155,1779579038000,-170.13,0.00017404,2]
[422889153,1779579038000,-5206.40020726,0.00017287,2]
[422889141,1779579038000,-230.11,0.00016438,2]
[422889157,1779579038000,-792.72746481,0.000177,2]
[422889152,1779579038000,-3393.60103392,0.000172,2]
[422889154,1779579038000,-3393.60103392,0.000173,2]
[422889164,1779579038000,-1800.0,0.00017859,7]
[422889162,1779579038000,-2500.0,0.00017859,2]
[422889165,1779579038000,-1238.82240603,0.0001789,2]
[422889163,1779579038000,-2000.0,0.00017859,2]
[422889159,1779579038000,-3393.60103392,0.000177,2]
[422889143,1779579038000,-13059.70411797,0.000165,2]
[422889131,1779579038000,-1990.4,0.00015751,2]
[422889138,1779579038000,-680.78916923,0.000162,2]
[422889166,1779579038000,-112897.2605835,0.000179,2]
[422889115,1779579038000,-500.0,0.00014999,2]
[422889114,1779579038000,-352.23573905,0.00014999,2]
[422889117,1779579038000,-500.0,0.00014999,2]
[422889118,1779579038000,-454.43650204,0.00014999,2]
[422889116,1779579038000,-500.0,0.00014999,2]
[422889119,1779579038000,-500.0,0.00014999,2]
[422889120,1779579038000,-500.0,0.00014999,2]
[422889121,1779579038000,-601.5149635,0.00014999,2]
[422889122,1779579038000,-300.0,0.00014999,2]
[422889125,1779579038000,-2508.24707003,0.00015,14]
[422889142,1779579038000,-6613.26815827,0.000165,2]
[422889133,1779579038000,-680.78916923,0.00016,2]
[422889124,1779579038000,-300.0,0.00014999,2]
[422889126,1779579038000,-1213618.6904045,0.00015,2]
[422889128,1779579038000,-165.96,0.00015267,2]
[422889127,1779579038000,-621.43653201,0.000151,2]
[422889136,1779579038000,-680.78916923,0.000161,2]
[422889130,1779579038000,-1517.64,0.000153,2]
[422889129,1779579038000,-862.77,0.00015267,2]
[422889135,1779579038000,-200.91310688,0.000161,7]
[422889132,1779579038000,-2271.31603489,0.00015807,2]
[422889139,1779579038000,-200.0,0.0001634,2]
[422889140,1779579038000,-2130.5,0.00016438,2]
[422889134,1779579038000,-5206.40020726,0.00016094,2]
[422889171,1779579038000,-666.0,0.00017999,2]
[422889123,1779579038000,-666.0,0.00014999,2]
[422889169,1779579038000,-670.58560358,0.00017999,2]
[422889218,1779579038000,-1047.74094533,0.000191,2]
[422889220,1779579038000,-1302.5420787,0.000191,2]
[422889232,1779579038000,-5206.40020726,0.00019675,2]
[422889235,1779579038000,-1990.4,0.00019689,2]
[422889237,1779579038000,-1047.74094533,0.000197,2]
[422889224,1779579038000,-1302.5420787,0.000193,2]
[422889222,1779579038000,-1047.74094533,0.000193,2]
[422889226,1779579038000,-621.43653195,0.00019394,2]
[422889228,1779579038000,-1047.74094533,0.000195,2]
[422889230,1779579038000,-1302.5420787,0.000195,2]
[422889239,1779579038000,-1302.5420787,0.000197,2]
[422889212,1779579038000,-1690.0,0.00019,2]
[422889243,1779579038000,-200.0,0.0001985,2]
[422889247,1779579038000,-151.0,0.0001985,2]
[422889251,1779579038000,-198.97225456,0.0001985,2]
[422889249,1779579038000,-191.87295522,0.0001985,2]
[422889260,1779579038000,-221.88543241,0.0001985,2]
[422889253,1779579038000,-151.0,0.0001985,2]
[422889257,1779579038000,-213.96859442,0.0001985,2]
[422889255,1779579038000,-206.33422798,0.0001985,2]
[422889261,1779579038000,-151.0,0.0001985,2]
[422889263,1779579038000,-151.0,0.0001985,2]
[422889259,1779579038000,-151.0,0.0001985,2]
[422889167,1779579038000,-3393.60103392,0.000179,2]
[422889245,1779579038000,-151.0,0.0001985,2]
[422889216,1779579038000,-364.22063118,0.0001901,7]
[422889241,1779579038000,-151.0,0.0001985,2]
[422889214,1779579038000,-5234.09108965,0.00019,2]
[422889206,1779579038000,-1302.5420787,0.000187,2]
[422889168,1779579038000,-621.43653195,0.00017963,2]
[422889170,1779579038000,-300.0,0.00017999,2]
[422889174,1779579038000,-196.66044312,0.00018,2]
[422889172,1779579038000,-110823.29748014,0.00018,2]
[422889173,1779579038000,-1207.05606821,0.00018,2]
[422889176,1779579038000,-1047.74094533,0.00018,2]
[422889177,1779579038000,-1302.5420787,0.00018,2]
[422889188,1779579038000,-215.31523495,0.0001844,2]
[422889178,1779579038000,-1801.27597876,0.000181,2]
[422889186,1779579038000,-2130.5,0.0001841,2]
[422889182,1779579038000,-1047.74094533,0.000184,2]
[422889179,1779579038000,-1047.74094533,0.000182,2]
[422889184,1779579038000,-1302.5420787,0.000184,2]
[422889190,1779579038000,-5206.40020726,0.00018481,2]
[422889210,1779579038000,-1302.5420787,0.000189,2]
[422889202,1779579038000,-150.99,0.00018533,2]
[422889204,1779579038000,-1047.74094533,0.000187,2]
[422889200,1779579038000,-299.99,0.00018533,4]
[422889199,1779579038000,-3153.97,0.00018533,2]
[422889208,1779579038000,-1047.74094533,0.000189,2]
[422889194,1779579038000,-1302.5420787,0.000185,2]
[422889192,1779579038000,-1047.74094533,0.000185,2]
[422889180,1779579038000,-1302.5420787,0.000182,2]
[422889175,1779579038000,-3393.60103392,0.00018,2]
[422889197,1779579038000,-9999.99,0.00018533,2]
[422889360,1779579039000,-151.0,0.0001985,2]
[422889362,1779579039000,-151.0,0.0001985,2]
[422889356,1779579039000,-151.0,0.0001985,2]
[422889354,1779579039000,-151.0,0.0001985,2]
[422889344,1779579039000,-151.0,0.0001985,2]
[422889337,1779579039000,-151.0,0.0001985,2]
[422889339,1779579039000,-500.0,0.0001985,2]
[422889335,1779579039000,-500.0,0.0001985,2]
[422889322,1779579039000,-500.0,0.0001985,2]
[422889324,1779579039000,-151.0,0.0001985,2]
[422889358,1779579039000,-500.0,0.0001985,2]
[422889342,1779579039000,-151.0,0.0001985,2]
[422889364,1779579039000,-500.0,0.0001985,2]
[422889388,1779579039000,-300.0,0.00019999,2]
[422889352,1779579039000,-500.0,0.0001985,2]
[422889350,1779579039000,-151.0,0.0001985,2]
[422889346,1779579039000,-500.0,0.0001985,2]
[422889366,1779579039000,-151.0,0.0001985,2]
[422889368,1779579039000,-500.0,0.0001985,2]
[422889372,1779579039000,-151.0,0.0001985,2]
[422889370,1779579039000,-151.0,0.0001985,2]
[422889374,1779579039000,-151.0,0.0001985,2]
[422889376,1779579039000,-151.0,0.0001985,2]
[422889380,1779579039000,-3442.77138961,0.000199,3]
[422889382,1779579039000,-700.0,0.000199,7]
[422889333,1779579039000,-151.0,0.0001985,2]
[422889348,1779579039000,-151.0,0.0001985,2]
[422889331,1779579039000,-151.0,0.0001985,2]
[422889269,1779579039000,-238.60871557,0.0001985,2]
[422889326,1779579039000,-151.0,0.0001985,2]
[422889265,1779579039000,-230.09519341,0.0001985,2]
[422889390,1779579039000,-158.41811445,0.0002,2]
[422889281,1779579039000,-151.0,0.0001985,2]
[422889283,1779579039000,-256.59241585,0.0001985,2]
[422889279,1779579039000,-151.0,0.0001985,2]
[422889285,1779579039000,-500.0,0.0001985,2]
[422889288,1779579039000,-151.0,0.0001985,2]
[422889271,1779579039000,-1798.80895522,0.0001985,2]
[422889277,1779579039000,-500.0,0.0001985,2]
[422889292,1779579039000,-151.0,0.0001985,2]
[422889290,1779579039000,-266.08633524,0.0001985,2]
[422889273,1779579039000,-151.0,0.0001985,2]
[422889275,1779579039000,-247.43723804,0.0001985,2]
[422889294,1779579039000,-275.93152964,0.0001985,2]
[422889303,1779579039000,-296.7282131,0.0001985,2]
[422889298,1779579039000,-500.0,0.0001985,2]
[422889299,1779579039000,-286.14099624,0.0001985,2]
[422889296,1779579039000,-151.0,0.0001985,2]
[422889301,1779579039000,-151.0,0.0001985,2]
[422889305,1779579039000,-151.0,0.0001985,2]
[422889311,1779579039000,-307.70715698,0.0001985,2]
[422889307,1779579039000,-500.0,0.0001985,2]
[422889309,1779579039000,-151.0,0.0001985,2]
[422889313,1779579039000,-500.0,0.0001985,2]
[422889315,1779579039000,-151.0,0.0001985,2]
[422889329,1779579039000,-500.0,0.0001985,2]
[422889317,1779579039000,-319.09232179,0.0001985,2]
[422889320,1779579039000,-151.0,0.0001985,2]
[422889384,1779579039000,-300.0,0.00019949,2]
[422889267,1779579039000,-500.0,0.0001985,2]
[422889386,1779579039000,-284219.72870787,0.0001995,15]
[422889462,1779579039000,-200.0,0.00020398,2]
[422889460,1779579039000,-151.0,0.00020398,2]
[422889458,1779579039000,-2130.5,0.00020381,2]
[422889456,1779579039000,-299.999999,0.000201,2]
[422889466,1779579039000,-1376.74,0.00020548,2]
[422889469,1779579039000,-21830.27,0.00020548,2]
[422889471,1779579039000,-150.0,0.0002058,2]
[422889473,1779579039000,-150.0,0.0002058,2]
[422889475,1779579039000,-150.0,0.0002058,2]
[422889476,1779579039000,-150.0,0.0002058,2]
[422889482,1779579039000,-22974.51001708,0.000207,2]
[422889480,1779579039000,-150.0,0.0002058,2]
[422889484,1779579039000,-621.43653195,0.00020825,2]
[422889477,1779579039000,-150.0,0.0002058,2]
[422889488,1779579039000,-252.81269885,0.00020946,2]
[422889491,1779579039000,-200.0,0.00020946,2]
[422889486,1779579039000,-5206.40020726,0.00020868,2]